bitfinex/quotes_BTCUSD_20260104
["timestamp","ask_amount","ask_price","bid_price","bid_amount"]
[1767501707556,0.000999,91425.0,91423.0,0.01093816]
[1767501707739,0.02188,91424.0,91422.0,0.01093828]
[1767501708825,0.02188,91424.0,91421.0,0.0109384]
[1767501717320,0.02188,91424.0,91422.0,0.05469097]
[1767501719880,0.02188,91424.0,91421.0,0.06562986]
[1767501725279,0.02188,91424.0,91422.0,0.05469095]
[1767501725451,0.00047886,91432.0,91425.0,0.01093792]
[1767501725811,0.00047886,91432.0,91426.0,0.0109378]
[1767501726226,0.00047886,91432.0,91427.0,0.01093768]
[1767501726429,0.00047886,91432.0,91428.0,0.01093756]
[1767501726430,0.02188,91431.0,91428.0,0.01093756]
[1767501730832,0.02188,91431.0,91429.0,0.05468724]
[1767501734228,0.02188,91431.0,91428.0,0.01093756]
[1767501739350,0.02188,91431.0,91429.0,0.05468724]
[1767501740023,0.000999,91429.0,91428.0,0.01093756]
[1767501740205,0.010999,91429.0,91428.0,0.01093756]
[1767501740406,0.02188,91431.0,91428.0,0.01093756]
[1767501740990,0.02188,91431.0,91428.0,0.00993856]
[1767501741440,0.02188,91431.0,91427.0,0.01087625]
[1767501741831,0.02188,91431.0,91428.0,0.01093756]
[1767501742943,0.02188,91431.0,91427.0,0.01087625]
[1767501743240,0.02188,91431.0,91428.0,0.01093756]
[1767501745991,0.02188,91431.0,91427.0,0.01087625]
[1767501746431,0.02188,91431.0,91428.0,0.01093756]
[1767501747488,0.02188,91431.0,91427.0,0.01087625]
[1767501747694,0.02188,91431.0,91428.0,0.01093756]
[1767501748955,0.02188,91431.0,91427.0,0.01087625]
[1767501749158,0.02188,91431.0,91428.0,0.01093756]
[1767501749358,0.02188,91431.0,91427.0,0.01087625]
[1767501749600,0.02188,91431.0,91428.0,0.01093756]
[1767501750371,0.02178979,91431.0,91428.0,0.01093756]
[1767501751984,0.0117898,91431.0,91428.0,0.06562498]
[1767501752256,0.0117898,91431.0,91428.0,0.01093756]
[1767501753460,0.0117898,91431.0,91428.0,0.01089756]
[1767501754186,0.01,91428.0,91424.0,0.01093804]
[1767501754551,0.01,91428.0,91425.0,0.01093792]
[1767501754893,0.0117898,91431.0,91426.0,0.0109378]
[1767501755090,0.0117898,91431.0,91427.0,0.01093768]
[1767501755591,0.0117898,91431.0,91428.0,0.01093756]
[1767501755955,0.0107908,91431.0,91428.0,0.01093756]
[1767501757256,0.0107908,91431.0,91427.0,0.01093768]
[1767501757705,0.010999,91427.0,91423.0,0.01093816]
[1767501758120,0.01,91427.0,91422.0,0.01093828]
[1767501758260,0.01,91427.0,91420.0,0.000359]
[1767501758460,0.01,91427.0,91421.0,0.0109384]
[1767501759082,0.01,91427.0,91420.0,0.01129752]
[1767501759600,0.01,91427.0,91421.0,0.0109384]
[1767501759778,0.01,91427.0,91422.0,0.01093828]
[1767501761058,0.01,91427.0,91423.0,0.01093816]
[1767501761466,0.01,91427.0,91420.0,0.01129752]
[1767501763483,0.01,91427.0,91420.0,0.000359]
[1767501763685,0.01,91427.0,91420.0,0.01129752]
[1767501764443,0.01,91427.0,91421.0,0.0109384]
[1767501764850,0.01,91427.0,91420.0,0.01129752]
[1767501766150,0.01,91427.0,91420.0,0.000359]
[1767501766512,0.01,91427.0,91420.0,0.01129752]
[1767501767103,0.01,91427.0,91420.0,0.000359]
[1767501767305,0.01,91427.0,91420.0,0.01129752]
[1767501768276,0.01,91427.0,91421.0,0.0109384]
[1767501768507,0.01,91427.0,91420.0,0.01129752]
[1767501768879,0.01,91427.0,91421.0,0.0109384]
[1767501769285,0.01,91427.0,91420.0,0.01129752]
[1767501769487,0.01,91427.0,91420.0,0.000359]
[1767501769691,0.01,91427.0,91420.0,0.01129752]
[1767501769888,0.01,91427.0,91420.0,0.000359]
[1767501771183,0.01,91427.0,91420.0,0.01129752]
[1767501771383,0.01,91427.0,91420.0,0.000359]
[1767501774162,0.009001,91427.0,91420.0,0.000359]
[1767501774363,0.009001,91427.0,91421.0,0.0109384]
[1767501774565,0.021728,91431.0,91421.0,0.0109384]
[1767501774719,0.0107908,91431.0,91421.0,0.0109384]
[1767501775330,0.0107908,91431.0,91422.0,0.01093828]
[1767501775539,0.0107908,91431.0,91424.0,0.01093804]
[1767501779649,0.0107908,91431.0,91425.0,0.01093792]
[1767501780011,0.0107908,91431.0,91424.0,0.01093804]
[1767501781899,0.0107908,91431.0,91423.0,0.01093816]
[1767501782823,0.0107908,91431.0,91425.0,0.01093792]
[1767501783039,0.0107908,91431.0,91424.0,0.05469023]
[1767501783238,0.0107908,91431.0,91424.0,0.01093804]
[1767501784499,0.0107908,91431.0,91424.0,0.06562805]
[1767501784796,0.0107908,91431.0,91424.0,0.01093804]
[1767501785204,0.0107908,91431.0,91423.0,0.01093816]
[1767501785747,0.0107908,91431.0,91424.0,0.01093804]
[1767501786168,0.0107908,91431.0,91423.0,0.01093816]
[1767501787467,0.0107908,91431.0,91421.0,0.0109384]
[1767501788068,0.021728,91431.0,91421.0,0.0109384]
[1767501788453,0.0107908,91431.0,91423.0,0.01093816]
[1767501789205,0.0107908,91431.0,91422.0,0.01093828]
[1767501790515,0.0107908,91431.0,91423.0,0.01093816]
[1767501791364,0.0107908,91431.0,91424.0,0.01093804]
[1767501791884,0.0107908,91431.0,91423.0,0.01093816]
[1767501792466,0.0107908,91431.0,91422.0,0.01093828]
[1767501792643,0.0107908,91431.0,91423.0,0.01093816]
[1767501794854,0.0107908,91431.0,91424.0,0.01093804]
[1767501795053,0.05671515,91431.0,91424.0,0.01093804]
[1767501795609,0.05671515,91431.0,91420.0,0.29189534]
[1767501796128,0.05671515,91431.0,91422.0,0.01093828]
[1767501796496,0.05671515,91431.0,91423.0,0.01093816]
[1767501796998,0.0107908,91431.0,91424.0,0.04665032]
[1767501798518,0.0107908,91431.0,91424.0,0.04565132]
[1767501799914,0.021728,91431.0,91424.0,0.04565132]
[1767501800980,0.021728,91431.0,91420.0,0.000359]
[1767501800981,0.01093732,91430.0,91420.0,0.000359]
[1767501801178,0.021728,91431.0,91421.0,0.0109384]
[1767501801753,0.021728,91431.0,91422.0,0.04665032]
[1767501802147,0.01093732,91430.0,91422.0,0.04665032]
[1767501802354,0.021728,91431.0,91422.0,0.04665032]
[1767501803420,0.0107908,91431.0,91422.0,0.04665032]
[1767501803619,0.021728,91431.0,91422.0,0.04665032]
[1767501805338,0.01093744,91429.0,91422.0,0.04665032]
[1767501805520,0.009001,91422.0,91420.0,0.000359]
[1767501805746,0.02188,91421.0,91420.0,0.000359]
[1767501805937,0.020881,91421.0,91420.0,0.000359]
[1767501806938,0.02083589,91421.0,91420.0,0.000359]
[1767501808069,0.02083589,91421.0,91415.0,0.01093912]
[1767501808236,0.02083589,91421.0,91416.0,0.010939]
[1767501809635,0.02083589,91421.0,91416.0,0.05758932]
[1767501810017,0.02083589,91421.0,91417.0,0.01093888]
[1767501810215,0.02079078,91421.0,91416.0,0.05758932]
[1767501810363,0.02079078,91421.0,91416.0,0.04665032]
[1767501810786,0.02079078,91421.0,91416.0,0.05758932]
[1767501811847,0.02079078,91421.0,91417.0,0.01093888]
[1767501812260,0.02079078,91421.0,91416.0,0.05758932]
[1767501812562,0.02079078,91421.0,91417.0,0.01093888]
[1767501813034,0.02079078,91421.0,91416.0,0.05758932]
[1767501813271,0.02079078,91421.0,91417.0,0.01093888]
[1767501814691,0.02079078,91421.0,91416.0,0.010939]
[1767501815294,0.02079078,91421.0,91417.0,0.01093888]
[1767501815550,0.02079078,91421.0,91416.0,0.010939]
[1767501816751,0.02079078,91421.0,91417.0,0.0486077]
[1767501816897,0.02079078,91421.0,91417.0,0.05954658]
[1767501817113,0.02079078,91421.0,91417.0,0.0486077]
[1767501817317,0.02079078,91421.0,91417.0,0.05954658]
[1767501817769,0.02079078,91421.0,91417.0,0.01093888]
[1767501819048,0.02079078,91421.0,91416.0,0.010939]
[1767501819282,0.02079078,91421.0,91417.0,0.01093888]
[1767501820285,0.01093457,91453.0,91435.0,0.05954443]
[1767501820603,0.04372,91448.0,91440.0,0.23684384]
[1767501821007,0.04372,91448.0,91439.0,0.0486077]
[1767501821207,0.00064,91440.0,91436.0,0.0486077]
[1767501821409,0.02188,91439.0,91436.0,0.05954431]
[1767501822836,0.02179182,91439.0,91436.0,0.01093661]
[1767501823554,0.02143282,91439.0,91436.0,0.01093661]
[1767501824084,0.05465517,91448.0,91439.0,0.04965181]
[1767501824339,0.02188,91447.0,91439.0,0.00104411]
[1767501825138,0.03281529,91447.0,91439.0,0.00075992]
[1767501825382,0.03281529,91447.0,91437.0,0.01093649]
[1767501825792,0.01093541,91446.0,91435.0,0.01093673]
[1767501826190,0.02188,91447.0,91437.0,0.01093649]
[1767501826403,0.08749226,91447.0,91434.0,0.0486077]
[1767501826690,0.01093565,91444.0,91434.0,0.01093685]
[1767501828276,0.01093565,91444.0,91434.0,0.01104441]
[1767501829101,0.01093565,91444.0,91434.0,0.01076025]
[1767501829303,0.01093565,91444.0,91434.0,0.0104761]
[1767501829502,0.01084747,91444.0,91434.0,0.0104761]
[1767501830017,0.01093589,91442.0,91434.0,0.00010756]
[1767501830218,0.01093625,91439.0,91434.0,5.6e-07]
[1767501830420,0.000107,91434.0,91426.0,0.00047887]
[1767501830621,0.00037736,91434.0,91427.0,0.01093768]
[1767501830945,0.00037736,91434.0,91426.0,0.01141667]
[1767501831144,0.00037736,91434.0,91427.0,0.01093768]
[1767501832880,0.00037736,91434.0,91426.0,0.01141667]
[1767501832881,0.000892,91427.0,91426.0,0.00047887]
[1767501833044,0.0226838,91427.0,91426.0,0.00047887]
[1767501833861,0.02188,91427.0,91426.0,0.00047887]
[1767501834254,0.02112008,91427.0,91426.0,0.00047887]
[1767501834602,0.02087897,91427.0,91426.0,0.00047887]
[1767501837677,0.00943238,91425.0,91417.0,0.01093888]
[1767501837874,0.00943238,91425.0,91420.0,0.01093852]
[1767501838039,0.00936345,91425.0,91420.0,0.01093852]
[1767501838436,0.00936345,91425.0,91421.0,0.0109384]
[1767501839025,0.02087897,91427.0,91420.0,0.01093852]
[1767501839216,0.02087897,91427.0,91421.0,0.0109384]
[1767501839420,0.02087897,91427.0,91420.0,0.01093852]
[1767501839727,0.02087897,91427.0,91421.0,0.0109384]
[1767501840515,0.02087897,91427.0,91420.0,0.01093852]
[1767501840689,0.02087897,91427.0,91419.0,0.01093864]
[1767501840901,0.02087897,91427.0,91420.0,0.01093852]
[1767501841901,0.02087897,91427.0,91421.0,0.0109384]
[1767501842914,0.02087897,91427.0,91422.0,0.01093828]
[1767501843915,0.02087897,91427.0,91421.0,0.0109384]
[1767501844112,0.02087897,91427.0,91422.0,0.01093828]
[1767501844878,0.02087897,91427.0,91423.0,0.01093816]
[1767501845245,0.02087897,91427.0,91422.0,0.01093828]
[1767501845973,0.000999,91422.0,91421.0,0.0109384]
[1767501846657,0.02087897,91427.0,91421.0,0.0109384]
[1767501846855,0.02087897,91427.0,91419.0,0.01093864]
[1767501847076,0.02083386,91427.0,91420.0,0.01093852]
[1767501847277,0.02083386,91427.0,91421.0,0.0109384]
[1767501849779,0.02083386,91427.0,91420.0,0.01093852]
[1767501850347,0.02083386,91427.0,91419.0,0.01093864]
[1767501850648,0.02083386,91427.0,91420.0,0.01093852]
[1767501850852,0.02083386,91427.0,91422.0,0.01093828]
[1767501851715,0.02083386,91427.0,91423.0,0.01093816]
[1767501852124,0.02083386,91427.0,91422.0,0.01093828]
[1767501852325,0.02083386,91427.0,91424.0,0.01093804]
[1767501852528,0.02083386,91427.0,91423.0,0.01093816]
[1767501854177,0.02083386,91427.0,91422.0,0.01093828]
[1767501854623,0.04372,91444.0,91433.0,0.04658146]
[1767501854844,0.02188,91443.0,91433.0,0.10126618]
[1767501855068,0.02188,91443.0,91435.0,0.01093673]
[1767501855269,0.000999,91435.0,91433.0,0.11220311]
[1767501855465,0.02188,91434.0,91433.0,0.11220311]
[1767501855712,0.02236544,91434.0,91433.0,0.11220311]
[1767501855930,0.02220776,91434.0,91433.0,0.11220311]
[1767501856953,0.02220776,91434.0,91433.0,0.11191896]
[1767501857159,0.000999,91433.0,91431.0,0.0109372]
[1767501857385,0.01,91433.0,91431.0,0.0109372]
[1767501857851,0.02220776,91434.0,91431.0,0.0109372]
[1767501858252,0.02220776,91434.0,91431.0,0.0656227]
[1767501860875,0.02220776,91434.0,91431.0,0.06533858]
[1767501861212,0.02220776,91434.0,91432.0,0.05468501]
[1767501862018,0.00617696,91434.0,91432.0,0.05468501]
[1767501862299,0.04372,91444.0,91432.0,0.05468501]
[1767501862300,0.04372,91444.0,91438.0,0.01093637]
[1767501862507,0.04372,91444.0,91441.0,0.01093601]
[1767501862717,0.04372,91444.0,91442.0,0.05467899]
[1767501862916,0.04372,91444.0,91442.0,0.0543949]
[1767501863129,0.04372,91444.0,91441.0,0.06533159]
[1767501863130,0.02188,91443.0,91441.0,0.06533159]
[1767501863275,0.02188,91443.0,91441.0,0.06504751]
[1767501868513,0.02188,91443.0,91441.0,0.11162897]
[1767501869266,0.02188,91443.0,91441.0,0.06504751]
[1767501869651,0.02188,91443.0,91441.0,0.06476344]
[1767501872276,0.02183489,91443.0,91441.0,0.11230747]
[1767501872500,0.02183489,91443.0,91441.0,0.06476344]
[1767501875144,0.02183489,91443.0,91432.0,0.01093708]
[1767501875145,0.000152,91454.0,91451.0,0.06560837]
[1767501875381,0.02188,91453.0,91451.0,0.06432532]
[1767501875535,0.02188,91453.0,91451.0,0.06404127]
[1767501875734,0.02188,91453.0,91450.0,0.01093493]
[1767501875920,0.01,91451.0,91450.0,0.01093493]
[1767501876120,0.01,91451.0,91447.0,0.06561127]
[1767501876627,0.01,91451.0,91448.0,0.01093517]
[1767501877124,0.01,91451.0,91441.0,0.06561496]
[1767501877326,0.01,91451.0,91443.0,0.01093577]
[1767501877544,0.01,91451.0,91445.0,0.01093553]
[1767501879083,0.01,91451.0,91446.0,0.01093541]
[1767501879390,0.01,91451.0,91444.0,0.01093565]
[1767501880791,0.05857457,91451.0,91443.0,0.01093577]
[1767501881597,0.05857457,91451.0,91441.0,0.01093601]
[1767501881815,0.05857457,91451.0,91436.0,0.01093661]
[1767501881816,0.05950974,91448.0,91436.0,0.01093661]
[1767501881977,0.04857457,91446.0,91438.0,0.01093637]
[1767501882177,0.04857457,91446.0,91437.0,0.01093649]
[1767501882430,0.04857457,91446.0,91438.0,0.01093637]
[1767501883132,0.04857457,91446.0,91439.0,0.01093625]
[1767501883482,0.04857457,91446.0,91438.0,0.01093637]
[1767501883839,0.04857457,91446.0,91439.0,0.01093625]
[1767501884922,0.04857457,91446.0,91438.0,0.01093637]
[1767501885144,0.04857457,91446.0,91439.0,0.01093625]
[1767501886227,0.04857457,91446.0,91438.0,0.01093637]
[1767501886560,0.02188,91445.0,91439.0,0.01093625]
[1767501886791,0.01,91439.0,91431.0,0.05468559]
[1767501886992,0.00993107,91439.0,91433.0,0.01093697]
[1767501887166,0.00888696,91439.0,91435.0,0.01093673]
[1767501887346,0.04857457,91444.0,91436.0,0.01093661]
[1767501888157,0.05951022,91444.0,91435.0,0.01093673]
[1767501888496,0.05951022,91444.0,91436.0,0.01093661]
[1767501888497,0.04857457,91444.0,91436.0,0.01093661]
[1767501888833,0.04857457,91444.0,91435.0,0.01093673]
[1767501889657,0.04857457,91444.0,91436.0,0.01093661]
[1767501890383,0.04857457,91444.0,91435.0,0.01093673]
[1767501890578,0.04857457,91444.0,91436.0,0.01093661]
[1767501891186,0.04857457,91444.0,91435.0,0.01093673]
[1767501891389,0.04857457,91444.0,91436.0,0.01093661]
[1767501892657,0.04857457,91444.0,91437.0,0.01093649]
[1767501892909,0.04857457,91444.0,91439.0,0.01093625]
[1767501893085,0.02188,91445.0,91439.0,0.01093625]
[1767501893294,0.02188,91445.0,91442.0,0.01093589]
[1767501893471,0.00021472,91454.0,91445.0,0.01093553]
[1767501893672,0.02188,91453.0,91446.0,0.01093541]
[1767501894427,0.02188,91453.0,91447.0,0.01093529]
[1767501894576,0.02188,91453.0,91446.0,0.01093541]
[1767501894772,0.02188,91453.0,91447.0,0.01093529]
[1767501895187,0.02188,91453.0,91447.0,0.06561175]
[1767501895383,0.02188,91453.0,91447.0,0.01093529]
[1767501896376,0.02188,91453.0,91446.0,0.01093541]
[1767501897020,0.02188,91453.0,91445.0,0.01093553]
[1767501897223,0.02188,91453.0,91446.0,0.01093541]
[1767501898946,0.02188,91453.0,91447.0,0.01093529]
[1767501899107,0.02188,91453.0,91448.0,0.01093517]
[1767501900105,0.02188,91453.0,91447.0,0.01093529]
[1767501900524,0.02188,91453.0,91448.0,0.01093517]
[1767501900705,0.02188,91453.0,91447.0,0.01093529]
[1767501900907,0.02188,91453.0,91448.0,0.01093517]
[1767501901250,0.02188,91453.0,91447.0,0.01093529]
[1767501901413,0.02188,91453.0,91446.0,0.01093541]
[1767501902453,0.02188,91453.0,91447.0,0.01093529]
[1767501903263,0.02188,91453.0,91449.0,0.01093505]
[1767501903458,0.02188,91453.0,91448.0,0.01093517]
[1767501903663,0.02188,91453.0,91447.0,0.01093529]
[1767501904288,0.02188,91453.0,91446.0,0.01093541]
[1767501904745,0.02188,91453.0,91445.0,0.01093553]
[1767501904945,0.02188,91453.0,91446.0,0.01093541]
[1767501905171,0.02188,91453.0,91447.0,0.01093529]
[1767501905426,0.02188,91453.0,91446.0,0.01093541]
[1767501906118,0.02188,91453.0,91448.0,0.01093517]
[1767501906972,0.02188,91453.0,91449.0,0.01093505]
[1767501907798,0.06975107,91453.0,91449.0,0.01093505]
[1767501908001,0.02188,91453.0,91449.0,0.01093505]
[1767501908223,0.02188,91453.0,91450.0,0.01093493]
[1767501908904,0.02188,91453.0,91450.0,0.06560921]
[1767501909551,0.02188,91453.0,91450.0,0.01093493]
[1767501910319,0.02188,91453.0,91450.0,0.01088982]
[1767501911946,0.010999,91450.0,91446.0,0.01093541]
[1767501912158,0.01,91450.0,91445.0,0.01093553]
[1767501912562,0.01,91450.0,91446.0,0.01093541]
[1767501912760,0.000999,91446.0,91444.0,0.01093565]
[1767501913164,0.01,91450.0,91445.0,0.01093553]
[1767501913595,0.01,91450.0,91444.0,0.01093565]
[1767501913866,0.000999,91444.0,91441.0,0.01093601]
[1767501914217,0.000999,91444.0,91442.0,0.05467946]
[1767501914364,0.01,91450.0,91445.0,0.01093553]
[1767501914811,0.01,91450.0,91444.0,0.01093565]
[1767501915159,0.01,91450.0,91445.0,0.01093553]
[1767501915369,0.01,91450.0,91445.0,0.00993653]
[1767501915964,0.01,91450.0,91444.0,0.01093565]
[1767501916128,0.01,91450.0,91445.0,0.01093553]
[1767501916330,0.01,91450.0,91445.0,0.01089042]
[1767501916547,0.01,91450.0,91445.0,0.01093553]
[1767501916755,0.01,91450.0,91443.0,0.01093577]
[1767501917333,0.01,91450.0,91440.0,0.05468014]
[1767501917532,0.01,91450.0,91441.0,0.01093601]
[1767501917757,0.01,91450.0,91445.0,0.01093553]
[1767501918029,0.01,91450.0,91442.0,0.01093589]
[1767501918215,0.01,91450.0,91443.0,0.01093577]
[1767501918926,0.01,91450.0,91444.0,0.01093565]
[1767501919143,0.01,91450.0,91445.0,0.01093553]
[1767501919310,0.01,91450.0,91444.0,0.01093565]
[1767501920092,0.01,91450.0,91443.0,0.01093577]
[1767501920322,0.01,91450.0,91444.0,0.01093565]
[1767501920523,0.01,91450.0,91445.0,0.01093553]
[1767501920906,0.01,91450.0,91443.0,0.01093577]
[1767501921112,0.01,91450.0,91444.0,0.01093565]
[1767501921528,0.01,91450.0,91445.0,0.01093553]
[1767501921729,0.01,91450.0,91444.0,0.01093565]
[1767501922927,0.01,91450.0,91444.0,0.01089054]
[1767501923130,0.01,91450.0,91443.0,0.01093577]
[1767501923327,0.01,91450.0,91444.0,0.01093565]
[1767501923767,0.01,91450.0,91445.0,0.01093553]
[1767501924154,0.01,91450.0,91444.0,0.01093565]
[1767501924456,0.01,91450.0,91445.0,0.01093553]
[1767501925069,0.06975107,91453.0,91445.0,0.01093553]
[1767501925338,0.06975107,91453.0,91447.0,0.01093529]
[1767501925787,0.06975107,91453.0,91445.0,0.01093553]
[1767501925991,0.06975107,91453.0,91446.0,0.01093541]
[1767501926887,0.06975107,91453.0,91445.0,0.01093553]
[1767501927089,0.06975107,91453.0,91446.0,0.01093541]
[1767501927292,0.06975107,91453.0,91445.0,0.01093553]
[1767501927766,0.06975107,91453.0,91446.0,0.01093541]
[1767501927930,0.06975107,91453.0,91445.0,0.01093553]
[1767501928535,0.06975107,91453.0,91446.0,0.01093541]
[1767501929398,0.06975107,91453.0,91445.0,0.01093553]
[1767501929621,0.06975107,91453.0,91446.0,0.01093541]
[1767501931653,0.06975107,91453.0,91447.0,0.01093529]
[1767501931852,0.06975107,91453.0,91447.0,0.01089121]
[1767501933015,0.06975107,91453.0,91446.0,0.01093541]
[1767501933257,0.06975107,91453.0,91447.0,0.01093529]
[1767501933805,0.06975107,91453.0,91446.0,0.01093541]
[1767501934939,0.06975107,91453.0,91447.0,0.01093529]
[1767501935141,0.06975107,91453.0,91447.0,0.01089121]
[1767501935390,0.000999,91447.0,91444.0,0.01093565]
[1767501935591,0.02188,91446.0,91444.0,0.01093565]
[1767501936005,0.02188,91446.0,91436.0,0.21873162]
[1767501936006,0.02188,91446.0,91439.0,0.01093625]
[1767501936151,0.02188,91446.0,91443.0,0.01093577]
[1767501937152,0.02188,91446.0,91440.0,0.01093613]
[1767501937153,0.0456079,91445.0,91440.0,0.01093613]
[1767501937372,0.0456079,91442.0,91439.0,0.0546808]
[1767501937574,0.02188,91446.0,91439.0,0.0546808]
[1767501937778,0.02188,91446.0,91441.0,0.01093601]
[1767501937976,0.02188,91446.0,91442.0,0.01093589]
[1767501938387,0.02188,91446.0,91443.0,0.01093577]
[1767501940437,0.02188,91446.0,91443.0,0.06561427]
[1767501941022,0.02188,91446.0,91445.0,0.05467767]
[1767501941207,0.00154861,91446.0,91445.0,0.05467767]
[1767501942753,0.000999,91445.0,91443.0,0.06561427]
[1767501943113,0.00154861,91446.0,91443.0,0.06561427]
[1767501944200,0.00154861,91446.0,91443.0,0.06461527]
[1767501946759,0.00154861,91446.0,91443.0,0.00993677]
[1767501946983,0.00154861,91446.0,91443.0,0.01093577]
[1767501947183,0.04715651,91446.0,91443.0,0.01093577]
[1767501948869,0.00154861,91446.0,91443.0,0.01093577]
[1767501950944,0.00154861,91446.0,91441.0,0.01093601]
[1767501951189,0.0456079,91445.0,91438.0,0.01441148]
[1767501951381,0.0456079,91445.0,91439.0,0.01093625]
[1767501951585,0.00154861,91446.0,91439.0,0.01093625]
[1767501951897,0.00154861,91446.0,91438.0,0.01093637]
[1767501952447,0.00154861,91446.0,91439.0,0.01093625]
[1767501953383,0.00154861,91446.0,91440.0,0.01093613]
[1767501955284,0.00154861,91446.0,91441.0,0.01093601]
[1767501955916,0.00154861,91446.0,91439.0,0.01093625]
[1767501956129,0.00154861,91446.0,91440.0,0.01093613]
[1767501956495,0.00154861,91446.0,91441.0,0.01093601]
[1767501957404,0.00154861,91446.0,91442.0,0.01093589]
[1767501957608,0.00046144,91446.0,91443.0,0.01093577]
[1767501957886,0.00028507,91446.0,91443.0,0.01093577]
[1767501958403,0.02188,91449.0,91447.0,0.0493047]
[1767501958606,0.02183489,91449.0,91443.0,0.01093577]
[1767501958828,0.04499896,91449.0,91443.0,0.05467836]
[1767501958992,0.04499896,91449.0,91442.0,0.05338651]
[1767501959609,0.04499896,91449.0,91444.0,0.06561392]
[1767501959610,0.02083589,91449.0,91444.0,0.06561392]
[1767501959810,0.02083589,91449.0,91445.0,0.01093553]
[1767501960009,0.02083589,91449.0,91446.0,0.01093541]
[1767501960878,0.02083589,91449.0,91447.0,0.05467647]
[1767501961071,0.02061879,91449.0,91448.0,0.04995078]
[1767501961359,0.02052616,91449.0,91448.0,0.04995078]
[1767501961606,0.02034974,91449.0,91448.0,0.04995078]
[1767501962103,0.02026152,91449.0,91448.0,0.04995078]
[1767501962305,0.04372,91460.0,91453.0,0.05467289]
[1767501962509,0.0393939,91490.0,91457.0,0.04995078]
[1767501962510,0.02179177,91459.0,91457.0,0.04995078]
[1767501962707,0.02188,91461.0,91459.0,0.06060048]
[1767501963002,0.02188,91461.0,91459.0,0.04995078]
[1767501963205,0.02188,91461.0,91458.0,0.01093398]
[1767501963406,0.02188,91461.0,91456.0,0.06088499]
[1767501963556,0.02188,91461.0,91456.0,0.04995078]
[1767501963761,0.02188,91461.0,91456.0,0.06088499]
[1767501963979,0.02188,91461.0,91456.0,0.04995078]
[1767501964182,0.02188,91461.0,91456.0,0.06088499]
[1767501964407,0.02188,91461.0,91457.0,0.06088488]
[1767501964616,0.02188,91461.0,91457.0,0.04895178]
[1767501964815,0.02188,91461.0,91455.0,0.01093433]
[1767501965221,0.02188,91461.0,91453.0,0.01093457]
[1767501966185,0.02188,91461.0,91452.0,0.04995078]
[1767501966391,0.03281362,91461.0,91452.0,0.06088547]
[1767501966588,0.01093374,91460.0,91452.0,0.04995078]
[1767501966791,0.02188,91461.0,91454.0,0.04995078]
[1767501967323,0.02188,91461.0,91454.0,0.06088523]
[1767501967729,0.02188,91461.0,91454.0,0.04995078]
[1767501968647,0.02188,91461.0,91454.0,0.06088523]
[1767501969162,0.02188,91461.0,91454.0,0.04995078]
[1767501970530,0.03281362,91461.0,91454.0,0.04995078]
[1767501973320,0.01093374,91460.0,91454.0,0.04995078]
[1767501973521,0.03281362,91461.0,91454.0,0.04995078]
[1767501973958,0.02188,91461.0,91454.0,0.04995078]
[1767501974319,0.02179178,91461.0,91454.0,0.04995078]
[1767501975678,0.0327254,91461.0,91454.0,0.04995078]
[1767501976236,0.01093374,91460.0,91454.0,0.04995078]
[1767501976844,0.04,91459.0,91454.0,0.04995078]
[1767501978381,0.04,91459.0,91454.0,0.06088523]
[1767501979090,0.04,91459.0,91456.0,0.04995078]
[1767501979749,0.04,91459.0,91456.0,0.04937186]
[1767501979947,0.03995488,91459.0,91456.0,0.04937186]
[1767501980178,0.03990976,91459.0,91454.0,0.01093445]
[1767501982066,0.03990976,91459.0,91453.0,0.01093457]
[1767501982265,0.03990976,91459.0,91455.0,0.04995078]
[1767501986397,0.03986464,91459.0,91455.0,0.04995078]
[1767501986600,0.03981952,91459.0,91455.0,0.04995078]
[1767501989864,0.03882052,91459.0,91455.0,0.06088511]
[1767501990027,0.03882052,91459.0,91457.0,0.04995078]
[1767501990611,0.02179178,91461.0,91459.0,0.04807292]
[1767501990779,0.02179178,91461.0,91455.0,0.01093433]
[1767501991000,0.02179178,91461.0,91454.0,0.05900737]
[1767501991342,0.02172286,91461.0,91454.0,0.05900737]
[1767501992047,0.02172286,91461.0,91455.0,0.01093433]
[1767501992958,0.02172286,91461.0,91456.0,0.01093421]
[1767501993302,0.02163262,91461.0,91455.0,0.01093433]
[1767501994584,0.02163262,91461.0,91456.0,0.01093421]
[1767501994783,0.02154439,91461.0,91456.0,0.01093421]
[1767501994954,0.02145615,91461.0,91456.0,0.01093421]
[1767501995618,0.02145615,91461.0,91455.0,0.01093433]
[1767501997184,0.02145615,91461.0,91454.0,0.06560622]
[1767501997378,0.02145615,91461.0,91454.0,0.01093445]
[1767501997584,0.000999,91454.0,91451.0,0.01093481]
[1767501997819,0.0008225,91454.0,91452.0,0.01093469]
[1767501997999,0.02145615,91461.0,91453.0,0.01093457]
[1767501998532,0.03238977,91461.0,91451.0,0.01093481]
[1767501998739,0.03238977,91461.0,91451.0,0.05758418]
[1767501999509,0.01093374,91460.0,91452.0,0.04664937]
[1767501999712,0.01093386,91459.0,91452.0,0.04582637]
[1767502000895,0.01093398,91458.0,91452.0,0.04582637]
[1767502001247,0.0109341,91457.0,91452.0,0.04582637]
[1767502001606,0.04806347,91456.0,91449.0,0.01093505]
[1767502001807,0.01093398,91458.0,91449.0,0.01093505]
[1767502002325,0.0109341,91457.0,91448.0,0.01093517]
[1767502002490,0.01093398,91458.0,91449.0,0.01093505]
[1767502002899,0.0109341,91457.0,91448.0,0.01093517]
[1767502003673,0.01093398,91458.0,91449.0,0.01093505]
[1767502004009,0.0109341,91457.0,91447.0,0.01093529]
[1767502004224,0.0109341,91457.0,91448.0,0.01093517]
[1767502004420,0.0109341,91457.0,91447.0,0.01093529]
[1767502004619,0.0109341,91457.0,91448.0,0.01093517]
[1767502004826,0.0109341,91457.0,91448.0,0.05758454]
[1767502005047,0.01093398,91458.0,91449.0,0.01093505]
[1767502005887,0.01093398,91458.0,91448.0,0.04664937]
[1767502005888,0.01093433,91455.0,91448.0,0.04664937]
[1767502006126,0.01093398,91458.0,91432.0,0.01093708]
[1767502006127,0.01093565,91444.0,91432.0,0.01093708]
[1767502006344,0.01084564,91442.0,91432.0,0.04664937]
[1767502006740,0.01084564,91442.0,91433.0,0.01093697]
[1767502006919,0.06552498,91443.0,91434.0,0.01093685]
[1767502006920,0.06547986,91443.0,91434.0,0.01093685]
[1767502007238,0.0108004,91443.0,91434.0,0.01093685]
[1767502007385,0.01093577,91443.0,91433.0,0.01093697]
[1767502007589,0.01093577,91443.0,91434.0,0.01093685]
[1767502007886,0.01093589,91442.0,91433.0,0.01093697]
[1767502008161,0.01093577,91443.0,91434.0,0.01093685]